bitfinex-derivatives/quotes_BNBF0:USTF0_20230901
["timestamp","ask_amount","ask_price","bid_price","bid_amount"]
[1693542141848,4.55338026,216.45,214.29,0.16972919]
[1693542142052,4.55338026,216.45,214.3,0.16972919]
[1693542142247,4.55338026,216.45,214.23,1.8633551]
[1693542142452,4.55338026,216.45,214.24,0.16972919]
[1693542142653,4.55338026,216.45,214.23,1.8633551]
[1693542142952,4.55338026,216.45,214.24,0.16972919]
[1693542143153,4.55338026,216.45,214.23,1.8633551]
[1693542143354,4.55338026,216.45,214.24,0.16972919]
[1693542143554,4.55338026,216.45,214.23,1.8633551]
[1693542143754,4.55338026,216.45,214.24,0.16972919]
[1693542143955,4.55338026,216.45,214.23,1.8633551]
[1693542144155,4.55338026,216.45,214.24,0.16972919]
[1693542144356,4.55338026,216.45,214.25,0.16972919]
[1693542144656,4.55338026,216.45,214.23,1.69362591]
[1693542144657,4.55338026,216.45,214.26,0.16972919]
[1693542144850,4.55338026,216.45,214.27,0.16972919]
[1693542145055,4.55338026,216.45,214.28,0.16972919]
[1693542145256,4.55338026,216.45,214.23,1.8633551]
[1693542145457,4.55338026,216.45,214.24,0.16972919]
[1693542145654,4.55338026,216.45,214.23,1.8633551]
[1693542145856,4.55338026,216.45,214.24,0.16972919]
[1693542146055,4.55338026,216.45,214.23,1.69362591]
[1693542146056,4.55338026,216.45,214.23,1.8633551]
[1693542146256,4.55338026,216.45,214.24,0.16972919]
[1693542146458,4.55338026,216.45,214.25,0.16972919]
[1693542146657,4.55338026,216.45,214.26,0.16972919]
[1693542146860,4.55338026,216.45,214.27,0.16972919]
[1693542147160,4.55338026,216.45,214.28,0.16972919]
[1693542147362,4.55338026,216.45,214.29,0.16972919]
[1693542147560,4.55338026,216.45,214.3,0.16972919]
[1693542147860,4.55338026,216.45,214.31,0.16972919]
[1693542148058,4.55338026,216.45,214.23,1.69362591]
[1693542148059,4.55338026,216.45,214.32,0.16972919]
[1693542148260,4.55338026,216.45,214.33,0.16972919]
[1693542148455,4.55338026,216.45,214.34,0.16972919]
[1693542148658,4.55338026,216.45,214.35,0.16972919]
[1693542148858,4.55338026,216.45,214.36,0.16972919]
[1693542149061,4.55338026,216.45,214.23,1.69362591]
[1693542149062,4.55338026,216.45,214.37,0.16972919]
[1693542149259,4.55338026,216.45,214.38,0.16972919]
[1693542149460,4.55338026,216.45,214.39,0.16972919]
[1693542149661,4.55338026,216.45,214.4,0.16972919]
[1693542149860,4.55338026,216.45,214.41,0.16972919]
[1693542150060,4.55338026,216.45,214.42,0.16972919]
[1693542150364,4.55338026,216.45,214.43,0.16972919]
[1693542150561,4.55338026,216.45,214.44,0.16972919]
[1693542150861,4.55338026,216.45,214.45,0.16972919]
[1693542151061,4.55338026,216.45,214.46,0.16972919]
[1693542151262,4.55338026,216.45,214.47,0.16972919]
[1693542151456,4.55338026,216.45,214.48,0.16972919]
[1693542151660,4.55338026,216.45,214.23,1.8633551]
[1693542151862,4.55338026,216.45,214.24,0.16972919]
[1693542152062,4.55338026,216.45,214.25,0.16972919]
[1693542152361,4.55338026,216.45,214.26,0.16972919]
[1693542152563,4.55338026,216.45,214.27,0.16972919]
[1693542152761,4.55338026,216.45,214.28,0.16972919]
[1693542152963,4.55338026,216.45,214.29,0.16972919]
[1693542153162,4.55338026,216.45,214.3,0.16972919]
[1693542153461,4.55338026,216.45,214.31,0.16972919]
[1693542153657,4.55338026,216.45,214.32,0.16972919]
[1693542153857,4.55338026,216.45,214.33,0.16972919]
[1693542154061,4.55338026,216.45,214.34,0.16972919]
[1693542154262,4.55338026,216.45,214.35,0.16972919]
[1693542154458,4.55338026,216.45,214.23,1.8633551]
[1693542154659,4.55338026,216.45,214.24,0.16972919]
[1693542154863,4.55338026,216.45,214.25,0.16972919]
[1693542155064,4.55338026,216.45,214.26,0.16972919]
[1693542155363,4.55338026,216.45,214.27,0.16972919]
[1693542155564,4.55338026,216.45,214.28,0.16972919]
[1693542155761,4.55338026,216.45,214.29,0.16972919]
[1693542155965,4.55338026,216.45,214.3,0.16972919]
[1693542156265,4.55338026,216.45,214.31,0.16972919]
[1693542156464,4.55338026,216.45,214.32,0.16972919]
[1693542156765,4.55338026,216.45,214.33,0.16972919]
[1693542156968,4.55338026,216.45,214.34,0.16972919]
[1693542157163,4.55338026,216.45,214.35,0.16972919]
[1693542157363,4.55338026,216.45,214.36,0.16972919]
[1693542157567,4.55338026,216.45,214.37,0.16972919]
[1693542157763,4.55338026,216.45,214.38,0.16972919]
[1693542157960,4.55338026,216.45,214.39,0.16972919]
[1693542158160,4.55338026,216.45,214.23,1.8633551]
[1693542158365,4.55338026,216.45,214.24,0.16972919]
[1693542158565,4.55338026,216.45,214.25,0.16972919]
[1693542158762,4.55338026,216.45,214.26,0.16972919]
[1693542158966,4.55338026,216.45,214.27,0.16972919]
[1693542159165,4.55338026,216.45,214.23,1.8633551]
[1693542159364,4.55338026,216.45,214.24,0.16972919]
[1693542159568,4.55338026,216.45,214.25,0.16972919]
[1693542159769,0.07554735,216.44,214.26,0.16972919]
[1693542159969,0.07554735,216.44,214.27,0.16972919]
[1693542160170,0.07554735,216.44,214.28,0.16972919]
[1693542160368,0.07554735,216.44,214.23,1.69362591]
[1693542160369,0.07554735,216.43,214.23,1.8633551]
[1693542160568,0.07554735,216.43,214.24,0.16972919]
[1693542160769,0.07554735,216.44,214.23,1.8633551]
[1693542160969,0.07554735,216.43,214.24,0.16972919]
[1693542161171,0.07554735,216.43,214.25,0.16972919]
[1693542161471,0.07554735,216.44,214.26,0.16972919]
[1693542161671,0.07554735,216.44,214.27,0.16972919]
[1693542161866,0.07554735,216.44,214.28,0.16972919]
[1693542162068,0.07554735,216.44,214.29,0.16972919]
[1693542162266,0.07554735,216.44,214.22,0.1222]
[1693542162267,0.07554735,216.44,214.3,0.16972919]
[1693542162472,0.07554735,216.44,214.31,0.16972919]
[1693542162667,0.07554735,216.44,214.32,0.16972919]
[1693542162866,0.07554735,216.44,214.23,0.16972919]
[1693542163071,0.07554735,216.44,214.24,0.16972919]
[1693542163273,0.07554735,216.44,214.25,0.16972919]
[1693542163473,0.07554735,216.44,214.26,0.16972919]
[1693542163772,0.07554735,216.44,214.27,0.16972919]
[1693542163972,0.07554735,216.44,214.28,0.16972919]
[1693542164167,0.07554735,216.44,214.29,0.16972919]
[1693542164370,0.07554735,216.44,214.3,0.16972919]
[1693542164571,4.55338026,216.45,214.31,0.16972919]
[1693542164873,4.55338026,216.45,214.32,0.16972919]
[1693542165073,4.55338026,216.45,214.33,0.16972919]
[1693542165373,4.55338026,216.45,214.34,0.16972919]
[1693542165573,4.55338026,216.45,214.23,0.16972919]
[1693542165774,4.55338026,216.45,214.24,0.16972919]
[1693542165973,4.55338026,216.45,214.25,0.16972919]
[1693542166172,4.55338026,216.45,214.23,0.16972919]
[1693542166373,4.55338026,216.45,214.24,0.16972919]
[1693542166674,4.55338026,216.45,214.25,0.16972919]
[1693542166874,4.55338026,216.45,214.26,0.16972919]
[1693542167174,4.55338026,216.45,214.27,0.16972919]
[1693542167369,4.55338026,216.45,214.23,0.16972919]
[1693542167568,4.55338026,216.45,214.24,0.16972919]
[1693542167871,4.55338026,216.45,214.25,0.16972919]
[1693542168071,4.55338026,216.45,214.26,0.16972919]
[1693542168369,4.55338026,216.45,214.27,0.16972919]
[1693542168568,4.55338026,216.45,214.28,0.16972919]
[1693542168786,4.55338026,216.45,214.23,0.16972919]
[1693542168973,4.55338026,216.45,214.24,0.16972919]
[1693542169173,4.55338026,216.45,214.25,0.16972919]
[1693542169374,4.55338026,216.45,214.26,0.16972919]
[1693542169574,4.55338026,216.45,214.27,0.16972919]
[1693542169773,4.55338026,216.45,214.23,0.16972919]
[1693542169969,4.55338026,216.45,214.24,0.16972919]
[1693542170169,4.55338026,216.45,214.25,0.16972919]
[1693542170369,4.55338026,216.45,214.23,0.16972919]
[1693542170669,4.55338026,216.45,214.24,0.16972919]
[1693542170869,4.55338026,216.45,214.25,0.16972919]
[1693542171071,4.55338026,216.45,214.26,0.16972919]
[1693542171271,4.55338026,216.45,214.27,0.16972919]
[1693542171473,4.55338026,216.45,214.28,0.16972919]
[1693542171674,4.55338026,216.45,214.23,0.16972919]
[1693542171879,4.55338026,216.45,214.24,0.16972919]
[1693542172075,4.55338026,216.45,214.25,0.16972919]
[1693542172276,4.55338026,216.45,214.23,0.16972919]
[1693542172472,4.55338026,216.45,214.24,0.16972919]
[1693542172672,4.55338026,216.45,214.25,0.16972919]
[1693542172976,4.55338026,216.45,214.26,0.16972919]
[1693542173176,4.55338026,216.45,214.27,0.16972919]
[1693542173376,4.55338026,216.45,214.23,0.16972919]
[1693542173578,4.55338026,216.45,214.24,0.16972919]
[1693542173778,4.55338026,216.45,214.23,0.16972919]
[1693542173974,4.55338026,216.45,214.24,0.16972919]
[1693542174176,4.55338026,216.45,214.25,0.16972919]
[1693542174378,4.55338026,216.45,214.23,0.16972919]
[1693542174579,4.55338026,216.45,214.24,0.16972919]
[1693542174779,4.55338026,216.45,214.25,0.16972919]
[1693542174979,4.55338026,216.45,214.23,0.16972919]
[1693542175180,4.55338026,216.45,214.24,0.16972919]
[1693542175480,4.55338026,216.45,214.25,0.16972919]
[1693542175678,4.55338026,216.45,214.26,0.16972919]
[1693542175879,4.55338026,216.45,214.27,0.16972919]
[1693542176077,4.55338026,216.45,214.23,0.16972919]
[1693542176280,4.55338026,216.45,214.24,0.16972919]
[1693542176484,4.55338026,216.45,214.25,0.16972919]
[1693542176781,4.55338026,216.45,214.26,0.16972919]
[1693542176982,4.55338026,216.45,214.27,0.16972919]
[1693542177183,4.55338026,216.45,214.28,0.16972919]
[1693542177482,4.55338026,216.45,214.29,0.16972919]
[1693542177683,4.55338026,216.45,214.3,0.16972919]
[1693542177879,4.55338026,216.45,214.23,0.16972919]
[1693542178083,4.55338026,216.45,214.24,0.16972919]
[1693542178282,4.55338026,216.45,214.25,0.16972919]
[1693542178483,4.55338026,216.45,214.23,0.16972919]
[1693542178677,4.55338026,216.45,214.24,0.16972919]
[1693542178881,4.55338026,216.45,214.25,0.16972919]
[1693542179082,4.55338026,216.45,214.23,0.16972919]
[1693542179281,4.55338026,216.45,214.24,0.16972919]
[1693542179478,4.55338026,216.45,214.25,0.16972919]
[1693542179678,4.55338026,216.45,214.23,0.16972919]
[1693542179881,4.55338026,216.45,214.24,0.16972919]
[1693542180080,4.55338026,216.45,214.25,0.16972919]
[1693542180278,4.55338026,216.45,214.26,0.16972919]
[1693542180478,4.55338026,216.45,214.27,0.16972919]
[1693542180784,4.55338026,216.45,214.28,0.16972919]
[1693542180983,4.55338026,216.45,214.29,0.16972919]
[1693542181183,4.55338026,216.45,214.23,0.16972919]
[1693542181383,4.55338026,216.45,214.24,0.16972919]
[1693542181580,4.55338026,216.45,214.25,0.16972919]
[1693542181784,4.55338026,216.45,214.23,0.16972919]
[1693542181984,4.55338026,216.45,214.24,0.16972919]
[1693542182284,4.55338026,216.45,214.25,0.16972919]
[1693542182485,4.55338026,216.45,214.23,0.16972919]
[1693542182685,4.55338026,216.45,214.24,0.16972919]
[1693542182886,4.55338026,216.45,214.23,0.16972919]
[1693542183086,4.55338026,216.45,214.24,0.16972919]
[1693542183283,4.55338026,216.45,214.25,0.16972919]
[1693542183484,4.55338026,216.45,214.23,0.16972919]
[1693542183685,4.55338026,216.45,214.24,0.16972919]
[1693542183886,4.55338026,216.45,214.25,0.16972919]
[1693542184185,4.55338026,216.45,214.26,0.16972919]
[1693542184386,4.55338026,216.45,214.27,0.16972919]
[1693542184583,4.55338026,216.45,214.28,0.16972919]
[1693542184781,4.55338026,216.45,214.29,0.16972919]
[1693542184982,4.55338026,216.45,214.3,0.16972919]
[1693542185180,4.55338026,216.45,214.23,0.16972919]
[1693542185382,4.55338026,216.45,214.24,0.16972919]
[1693542185585,4.55338026,216.45,214.23,0.16972919]
[1693542185887,4.55338026,216.45,214.24,0.16972919]
[1693542186088,4.55338026,216.45,214.23,0.16972919]
[1693542186291,4.55338026,216.45,214.24,0.16972919]
[1693542186489,4.55338026,216.45,214.23,0.16972919]
[1693542186688,4.55338026,216.45,214.24,0.16972919]
[1693542186886,4.55338026,216.45,214.25,0.16972919]
[1693542187085,4.55338026,216.45,214.26,0.16972919]
[1693542187290,4.55338026,216.45,214.27,0.16972919]
[1693542187486,4.55338026,216.45,214.28,0.16972919]
[1693542187690,4.55338026,216.45,214.29,0.16972919]
[1693542187889,4.55338026,216.45,214.23,0.16972919]
[1693542188089,4.55338026,216.45,214.24,0.16972919]
[1693542188294,4.55338026,216.45,214.23,0.16972919]
[1693542188594,4.55338026,216.45,214.24,0.16972919]
[1693542188790,4.55338026,216.45,214.25,0.16972919]
[1693542188994,4.55338026,216.45,214.26,0.16972919]
[1693542189294,4.55338026,216.45,214.27,0.16972919]
[1693542189492,0.07554735,216.44,214.23,0.16972919]
[1693542189689,0.07554735,216.44,214.22,0.1222]
[1693542189690,4.55338026,216.45,214.24,0.16972919]
[1693542189893,0.07554735,216.44,214.25,0.16972919]
[1693542190089,0.07554735,216.44,214.26,0.16972919]
[1693542190292,0.07554735,216.44,214.27,0.16972919]
[1693542190491,0.07554735,216.44,214.28,0.16972919]
[1693542190695,0.07554735,216.44,214.23,0.16972919]
[1693542190893,0.07554735,216.44,214.22,0.1222]
[1693542190894,0.07554735,216.44,214.24,0.16972919]
[1693542191095,0.07554735,216.44,214.25,0.16972919]
[1693542191290,0.07554735,216.44,214.22,0.1222]
[1693542191291,0.07554735,216.44,214.26,0.16972919]
[1693542191491,0.07554735,216.44,214.27,0.16972919]
[1693542191695,0.07554735,216.44,214.23,0.16972919]
[1693542191896,0.07554735,216.44,214.24,0.16972919]
[1693542192096,0.07554735,216.44,214.23,0.16972919]
[1693542192296,0.07554735,216.44,214.24,0.16972919]
[1693542192494,0.07554735,216.44,214.25,0.16972919]
[1693542192693,0.07554735,216.44,214.26,0.16972919]
[1693542192891,0.07554735,216.44,214.23,0.16972919]
[1693542193090,0.07554735,216.44,214.24,0.16972919]
[1693542193297,0.07554735,216.44,214.25,0.16972919]
[1693542193599,0.07554735,216.43,214.26,0.16972919]
[1693542193898,0.07554735,216.43,214.27,0.16972919]
[1693542194098,0.07554735,216.43,214.23,0.16972919]
[1693542194299,0.07554735,216.43,214.24,0.16972919]
[1693542194496,0.07554735,216.43,214.25,0.16972919]
[1693542194703,0.07554735,216.43,214.26,0.16972919]
[1693542194902,0.07554735,216.43,214.23,0.16972919]
[1693542195203,0.07554735,216.43,214.24,0.16972919]
[1693542195398,0.07554735,216.43,214.25,0.16972919]
[1693542195596,0.07554735,216.43,214.26,0.16972919]
[1693542195800,0.07554735,216.43,214.23,0.16972919]
[1693542196001,0.07554735,216.43,214.24,0.16972919]
[1693542196302,0.07554735,216.43,214.25,0.16972919]
[1693542196502,0.07554735,216.43,214.23,0.16972919]
[1693542196802,0.07554735,216.43,214.24,0.16972919]
[1693542197002,0.07554735,216.43,214.23,0.16972919]
[1693542197303,0.07554735,216.43,214.24,0.16972919]
[1693542197504,0.07554735,216.42,214.25,0.16972919]
[1693542197705,0.07554735,216.43,214.26,0.16972919]
[1693542197904,0.07554735,216.43,214.23,0.16972919]
[1693542198105,0.07554735,216.43,214.24,0.16972919]
[1693542198405,0.07554735,216.43,214.25,0.16972919]
[1693542198605,0.07554735,216.43,214.23,0.16972919]
[1693542198905,0.07554735,216.43,214.24,0.16972919]
[1693542199100,0.07554735,216.43,214.23,0.16972919]
[1693542199305,0.07554735,216.43,214.24,0.16972919]
[1693542199505,0.07554735,216.43,214.23,0.16972919]
[1693542199701,0.07554735,216.43,214.24,0.16972919]
[1693542199905,0.07554735,216.43,214.25,0.16972919]
[1693542200107,0.07554735,216.43,214.23,0.16972919]
[1693542200401,0.07554735,216.43,214.24,0.16972919]
[1693542200605,0.07554735,216.43,214.25,0.16972919]
[1693542200805,0.07554735,216.43,214.26,0.16972919]
[1693542201106,0.07554735,216.43,214.27,0.16972919]
[1693542201302,0.07554735,216.43,214.28,0.16972919]
[1693542201501,0.07554735,216.43,214.29,0.16972919]
[1693542201704,0.07554735,216.43,214.23,0.16972919]
[1693542201905,0.07554735,216.43,214.24,0.16972919]
[1693542202106,0.07554735,216.43,214.25,0.16972919]
[1693542202307,0.07554735,216.43,214.26,0.16972919]
[1693542202508,0.07554735,216.43,214.23,0.16972919]
[1693542202709,0.07554735,216.43,214.24,0.16972919]
[1693542203009,0.07554735,216.43,214.25,0.16972919]
[1693542203303,0.07554735,216.43,214.26,0.16972919]
[1693542203507,0.07554735,216.43,214.27,0.16972919]
[1693542203809,0.07554735,216.43,214.28,0.16972919]
[1693542204003,0.07554735,216.43,214.29,0.16972919]
[1693542204205,0.07554735,216.43,214.23,0.16972919]
[1693542204404,0.07554735,216.43,214.24,0.16972919]
[1693542204604,0.07554735,216.43,214.25,0.16972919]
[1693542204809,0.07554735,216.43,214.23,0.16972919]
[1693542205009,0.07554735,216.43,214.24,0.16972919]
[1693542205210,0.07554735,216.43,214.23,0.16972919]
[1693542205506,0.07554735,216.43,214.24,0.16972919]
[1693542205711,0.07554735,216.43,214.25,0.16972919]
[1693542205911,0.07554735,216.43,214.23,0.16972919]
[1693542206113,0.07554735,216.43,214.24,0.16972919]
[1693542206411,0.07554735,216.43,214.25,0.16972919]
[1693542206612,0.07554735,216.43,214.26,0.16972919]
[1693542206912,0.07554735,216.43,214.27,0.16972919]
[1693542207106,0.07554735,216.43,214.23,0.16972919]
[1693542207307,0.07554735,216.43,214.24,0.16972919]
[1693542207513,0.07554735,216.43,214.25,0.16972919]
[1693542207713,0.07554735,216.43,214.26,0.16972919]
[1693542207910,0.07554735,216.43,214.23,0.16972919]
[1693542208113,0.07554735,216.43,214.24,0.16972919]
[1693542208313,0.07554735,216.43,214.25,0.16972919]
[1693542208514,0.07554735,216.43,214.23,0.16972919]
[1693542208813,0.07554735,216.43,214.24,0.16972919]
[1693542209016,0.07554735,216.43,214.23,0.16972919]
[1693542209214,0.07554735,216.43,214.24,0.16972919]
[1693542209408,0.07554735,216.43,214.25,0.16972919]
[1693542209612,0.07554735,216.43,214.26,0.16972919]
[1693542209813,0.07554735,216.43,214.27,0.16972919]
[1693542210014,0.07554735,216.43,214.22,0.1222]
[1693542210015,0.07554735,216.43,214.28,0.16972919]
[1693542210216,0.07554735,216.43,214.29,0.16972919]
[1693542210415,0.07554735,216.43,214.3,0.16972919]
[1693542210615,0.07554735,216.43,214.31,0.16972919]
[1693542210915,0.07554735,216.43,214.32,0.16972919]
[1693542211117,0.07554735,216.43,214.23,0.16972919]
[1693542211414,0.07554735,216.43,214.24,0.16972919]
[1693542211615,0.07554735,216.43,214.25,0.16972919]
[1693542211810,0.07554735,216.43,214.26,0.16972919]
[1693542212007,0.07554735,216.43,214.23,0.16972919]
[1693542212209,0.07554735,216.43,214.24,0.16972919]
[1693542212415,0.07554735,216.43,214.23,0.16972919]
[1693542212614,0.07554735,216.43,214.24,0.16972919]
[1693542212918,0.07554735,216.43,214.25,0.16972919]
[1693542213115,0.07554735,216.43,214.26,0.16972919]
[1693542213415,0.07554735,216.42,214.27,0.16972919]
[1693542213613,0.07554735,216.42,214.23,0.16972919]
[1693542213813,0.07554735,216.42,214.24,0.16972919]
[1693542214010,0.07554735,216.42,214.25,0.16972919]
[1693542214212,0.07554735,216.42,214.26,0.16972919]
[1693542214415,0.07554735,216.42,214.27,0.16972919]
[1693542214614,0.07554735,216.42,214.23,0.16972919]
[1693542214812,0.07554735,216.42,214.24,0.16972919]
[1693542215012,0.07554735,216.42,214.25,0.16972919]
[1693542215215,0.07554735,216.42,214.26,0.16972919]
[1693542215515,0.07554735,216.42,214.27,0.16972919]
[1693542215715,0.07554735,216.42,214.28,0.16972919]
[1693542215914,0.07554735,216.42,214.23,0.16972919]
[1693542216110,0.07554735,216.42,214.24,0.16972919]
[1693542216314,0.07554735,216.42,214.25,0.16972919]
[1693542216515,0.07554735,216.42,214.23,0.16972919]
[1693542216711,0.07554735,216.42,214.24,0.16972919]
[1693542216915,0.07554735,216.42,214.25,0.16972919]
[1693542217117,0.07554735,216.42,214.26,0.16972919]
[1693542217318,0.07554735,216.42,214.23,0.16972919]
[1693542217617,0.07554735,216.42,214.24,0.16972919]
[1693542217818,0.07554735,216.42,214.23,0.16972919]
[1693542218020,0.07554735,216.42,214.24,0.16972919]
[1693542218315,0.07554735,216.42,214.25,0.16972919]
[1693542218514,0.07554735,216.42,214.23,0.16972919]
[1693542218718,0.07554735,216.42,214.24,0.16972919]
[1693542219019,0.07554735,216.42,214.22,0.1222]
[1693542219020,0.07554735,216.42,214.25,0.16972919]
[1693542219318,0.07554735,216.42,214.26,0.16972919]
[1693542219516,0.07554735,216.42,214.27,0.16972919]
[1693542219716,0.07554735,216.42,214.28,0.16972919]
[1693542219914,0.07554735,216.42,214.29,0.16972919]
[1693542220118,0.07554735,216.42,214.3,0.16972919]
[1693542220320,0.07554735,216.42,214.31,0.16972919]
[1693542220520,0.07554735,216.42,214.32,0.16972919]
[1693542220820,0.07554735,216.43,214.33,0.16972919]
[1693542221015,0.07554735,216.43,214.34,0.16972919]
[1693542221214,0.07554735,216.43,214.23,0.16972919]
[1693542221416,0.07554735,216.43,214.24,0.16972919]
[1693542221622,0.07554735,216.43,214.23,0.16972919]
[1693542221921,0.07554735,216.43,214.24,0.16972919]
[1693542222122,0.07554735,216.43,214.25,0.16972919]
[1693542222420,0.07554735,216.43,214.26,0.16972919]
[1693542222721,0.07554735,216.42,214.27,0.16972919]
[1693542222921,0.07554735,216.42,214.28,0.16972919]
[1693542223121,0.07554735,216.42,214.29,0.16972919]
[1693542223320,0.07554735,216.42,214.22,0.1222]
[1693542223321,0.07554735,216.42,214.3,0.16972919]
[1693542223521,0.07554735,216.42,214.31,0.16972919]
[1693542223820,0.07554735,216.42,214.32,0.16972919]
[1693542224016,0.07554735,216.42,214.33,0.16972919]
[1693542224321,4.62892761,216.45,214.22,0.1222]
[1693542224322,0.07554735,216.43,214.34,0.16972919]
[1693542224523,0.07554735,216.43,214.35,0.16972919]
[1693542224724,0.07554735,216.43,214.36,0.16972919]
[1693542225023,0.07554735,216.43,214.37,0.16972919]
[1693542225323,0.07554735,216.43,214.38,0.16972919]
[1693542225524,0.07554735,216.43,214.39,0.16972919]
[1693542225725,0.07554735,216.43,214.4,0.16972919]
[1693542225924,0.07554735,216.43,214.41,0.16972919]
[1693542226220,0.07554735,216.43,214.42,0.16972919]
[1693542226424,0.07554735,216.43,214.43,0.16972919]
[1693542226618,0.07554735,216.43,214.22,0.1222]
[1693542226619,0.07554735,216.43,214.23,0.16972919]
[1693542226822,0.07554735,216.43,214.24,0.16972919]
[1693542227020,0.07554735,216.43,214.25,0.16972919]
[1693542227223,0.07554735,216.43,214.26,0.16972919]
[1693542227522,0.07554735,216.43,214.27,0.16972919]
[1693542227720,0.07554735,216.43,214.28,0.16972919]
[1693542227922,0.07554735,216.43,214.29,0.16972919]
[1693542228124,0.07554735,216.43,214.3,0.16972919]
[1693542228325,0.07554735,216.43,214.23,0.16972919]
[1693542228624,0.07554735,216.43,214.24,0.16972919]
[1693542228824,0.07554735,216.43,214.25,0.16972919]
[1693542229026,0.07554735,216.43,214.23,0.16972919]
[1693542229324,0.07554735,216.43,214.24,0.16972919]
[1693542229520,0.07554735,216.43,214.22,0.1222]
[1693542229521,0.07554735,216.43,214.25,0.16972919]
[1693542229824,0.07554735,216.43,214.26,0.16972919]
[1693542230025,0.07554735,216.43,214.27,0.16972919]
[1693542230224,0.07554735,216.43,214.23,0.16972919]
[1693542230424,0.07554735,216.43,214.24,0.16972919]
[1693542230626,0.07554735,216.43,214.25,0.16972919]
[1693542230928,0.07554735,216.43,214.26,0.16972919]
[1693542231128,0.07554735,216.43,214.27,0.16972919]
[1693542231427,0.07554735,216.43,214.28,0.16972919]
[1693542231627,0.07554735,216.43,214.29,0.16972919]
[1693542231822,0.07554735,216.43,214.3,0.16972919]
[1693542232026,0.07554735,216.43,214.31,0.16972919]
[1693542232227,0.07554735,216.43,214.23,0.16972919]
[1693542232427,0.07554735,216.43,214.24,0.16972919]
[1693542232627,0.07554735,216.43,214.23,0.16972919]
[1693542232823,0.07554735,216.43,214.24,0.16972919]
[1693542233022,0.07554735,216.43,214.23,0.16972919]
[1693542233228,0.07554735,216.43,214.24,0.16972919]
[1693542233430,0.07554735,216.43,214.23,0.16972919]
[1693542233629,0.07554735,216.43,214.24,0.16972919]
[1693542233830,0.07554735,216.43,214.23,0.16972919]
[1693542234024,0.07554735,216.43,214.24,0.16972919]
[1693542234224,0.07554735,216.43,214.23,0.16972919]
[1693542234430,0.07554735,216.43,214.24,0.16972919]
[1693542234630,0.07554735,216.43,214.23,0.16972919]
[1693542234831,0.07554735,216.43,214.24,0.16972919]
[1693542235131,0.07554735,216.43,214.25,0.16972919]
[1693542235331,0.07554735,216.43,214.23,0.16972919]
[1693542235634,0.07554735,216.43,214.24,0.16972919]
[1693542235828,0.07554735,216.43,214.23,0.16972919]
[1693542241729,0.07554735,216.42,214.23,0.16972919]
[1693542278362,0.07554735,216.41,214.23,0.16972919]
[1693542289168,0.07554735,216.42,214.23,0.16972919]
[1693542293275,0.07554735,216.43,214.23,0.16972919]
[1693542299078,0.07554735,216.42,214.23,0.16972919]
[1693542299278,0.07554735,216.43,214.23,0.16972919]
[1693542308480,4.62892761,216.45,214.23,0.16972919]
[1693542308680,0.07536716,216.43,214.23,0.16972919]
[1693542312686,0.07536716,216.42,214.23,0.16972919]
[1693542312886,0.07536716,216.38,214.23,0.16972919]
[1693542313686,0.07536716,216.39,214.23,0.16972919]
[1693542314685,0.07536716,216.4,214.23,0.16972919]
[1693542315882,0.07536716,216.41,214.23,0.16972919]
[1693542317589,0.07536716,216.42,214.23,0.16972919]
[1693542318322,0.07536716,216.41,214.23,0.16972919]
[1693542318683,0.15073432,216.43,214.23,0.16972919]
[1693542318684,0.07536716,216.4,214.23,0.16972919]
[1693542318885,4.98028064,216.45,214.23,0.16972919]
[1693542318886,0.07536716,216.41,214.23,0.16972919]
[1693542320691,0.07536716,216.42,214.23,0.16972919]
[1693542320883,0.07536716,216.41,214.23,0.16972919]
[1693542321691,0.07536716,216.42,214.23,0.16972919]
[1693542324693,0.07536716,216.41,214.23,0.16972919]
[1693542326695,0.07536716,216.4,214.23,0.16972919]
[1693542328599,0.07536716,216.39,214.23,0.16972919]
[1693542330601,0.07536716,216.38,214.23,0.16972919]
[1693542332898,0.07536716,216.37,214.23,0.16972919]
[1693542334002,0.07536716,216.36,214.23,0.16972919]
[1693542334699,0.07536716,216.35,214.23,0.16972919]
[1693542334901,0.07536716,216.36,214.23,0.16972919]
[1693542335504,0.07536716,216.35,214.23,0.16972919]
[1693542337005,0.07536716,216.34,214.23,0.16972919]
[1693542338705,0.07536716,216.33,214.23,0.16972919]
[1693542339200,0.07536716,216.34,214.23,0.16972919]
[1693542339406,0.07536716,216.33,214.23,0.16972919]
[1693542341302,0.07536716,216.32,214.23,0.16972919]
[1693542342704,0.07536716,216.31,214.23,0.16972919]
[1693542344409,0.07536716,216.3,214.23,0.16972919]
[1693542345712,0.07536716,216.29,214.23,0.16972919]
[1693542346814,0.07536716,216.28,214.23,0.16972919]
[1693542347714,0.07536716,216.26,214.23,0.16972919]
[1693542355124,0.07536716,216.27,214.23,0.16972919]
[1693542356522,0.07536716,216.28,214.23,0.16972919]
[1693542358327,0.07536716,216.29,214.23,0.16972919]
[1693542362129,0.07536716,216.3,214.23,0.16972919]
[1693542364626,0.07536716,216.31,214.23,0.16972919]
[1693542365727,0.07536716,216.32,214.23,0.16972919]
[1693542366628,0.07536716,216.33,214.23,0.16972919]
[1693542367728,0.07536716,216.34,214.23,0.16972919]
[1693542391248,0.07536716,216.33,214.23,0.16972919]
[1693542391448,0.07536716,216.34,214.23,0.16972919]